lending/lending_fUSD_20250621
["ID","MTS","AMOUNT","RATE_DAILY","PERIOD"]
[366828740,1750486242468,-884.26,0.000264,2]
[366828741,1750486242478,-437.88,0.00026467,120]
[366828742,1750486242488,-159.99,0.00026515,2]
[366828743,1750486242497,-1614.13,0.0002652,2]
[366828744,1750486242507,-1407.05458153,0.00026762,15]
[366828745,1750486242516,-560.0312,0.00026853,2]
[366828746,1750486242526,-700.0,0.000269,9]
[366828747,1750486242536,-834.26476573,0.00026975,2]
[366828748,1750486242546,-1000.0,0.0002699,10]
[366828749,1750486242556,-1000.0,0.0002699,10]
[366828750,1750486242566,-1000.0,0.0002699,10]
[366828751,1750486242575,-1000.0,0.0002699,10]
[366828752,1750486242586,-1000.0,0.0002699,10]
[366828753,1750486242595,-1000.0,0.0002699,10]
[366828754,1750486242604,-1000.0,0.0002699,10]
[366828755,1750486242614,-1000.0,0.0002699,10]
[366828756,1750486242623,-1017.75202797,0.0002699,10]
[366828757,1750486242633,-176.15375822,0.00027,2]
[366828758,1750486242643,-1008.0,0.00027,2]
[366828759,1750486242652,-1000.0,0.00027,2]
[366828760,1750486242662,-4813.409,0.00027064,2]
[366828761,1750486242672,-4095.0,0.00027064,2]
[366828762,1750486242682,-156.0,0.00027064,2]
[366828763,1750486242690,-855.0,0.00027064,2]
[366828764,1750486242699,-9263.40018389,0.00027117,2]
[366828765,1750486242708,-186.21063134,0.00027119,2]
[366828766,1750486242718,-500.0,0.00027119,2]
[366828767,1750486242728,-195.26889231,0.00027119,2]
[366828768,1750486242738,-500.0,0.00027119,2]
[366828769,1750486242748,-408.69124091,0.00027119,2]
[366828770,1750486242758,-527.1579571,0.00027119,2]
[366828771,1750486242768,-500.0,0.00027119,2]
[366828772,1750486242777,-500.0,0.00027119,2]
[366828773,1750486242785,-500.0,0.00027119,2]
[366828774,1750486242794,-500.0,0.00027119,2]
[366828775,1750486242803,-500.0,0.00027119,2]
[366828776,1750486242812,-500.0,0.00027119,2]
[366828777,1750486242822,-500.0,0.00027119,2]
[366828778,1750486242832,-406.39839487,0.00027119,2]
[366828779,1750486242841,-500.0,0.00027119,2]
[366828780,1750486242849,-500.0,0.00027119,2]
[366828781,1750486242858,-500.0,0.00027119,2]
[366828782,1750486242868,-500.0,0.00027119,2]
[366828783,1750486242876,-500.0,0.00027119,2]
[366828784,1750486242883,-20148.84957599,0.00027162,2]
[366828785,1750486242891,-1902.0,0.0002723,2]
[366828786,1750486242900,-1407.05458153,0.00027314,16]
[366828787,1750486242908,-4176.1682297,0.00027377,2]
[366828788,1750486242918,-151.35,0.00027386,2]
[366828789,1750486242927,-37585.5140673,0.00027387,2]
[366828790,1750486242936,-4176.1682297,0.0002739,2]
[366828791,1750486242945,-5114.65,0.00027397,2]
[366828792,1750486242954,-300.0,0.00027397,2]
[366828793,1750486242964,-150.0,0.00027397,2]
[366828794,1750486242973,-233.34900703,0.00027397,2]
[366828796,1750486242982,-29999.99,0.00027397,2]
[366828798,1750486242992,-22090.2,0.00027397,2]
[366828800,1750486243001,-607.63,0.00027397,2]
[366828801,1750486243011,-19999.99,0.00027397,2]
[366828803,1750486243021,-2000.0,0.00027399,2]
[366828804,1750486243031,-2000.0,0.000274,2]
[366828806,1750486243040,-725.0,0.000274,2]
[366828808,1750486243050,-1877.0,0.000274,2]
[366828810,1750486243060,-4176.1682297,0.00027465,2]
[366828811,1750486243070,-424.94062948,0.00027478,2]
[366828813,1750486243080,-1691.471643,0.00027489,60]
[366828816,1750486243089,-4176.1682297,0.00027498,2]
[366828824,1750486243100,-151.0,0.00027522,2]
[366828825,1750486243270,-1957.856,0.00027522,2]
[366828826,1750486243280,-207.4,0.00027522,2]
[366828827,1750486243290,-2030.296672,0.00027577,2]
[366828828,1750486243300,-150.0,0.00027605,5]
[366828829,1750486243310,-8352.3364594,0.0002761,2]
[366828830,1750486243323,-154.40266305,0.0002761,2]
[366828831,1750486243333,-2105.41764886,0.00027632,2]
[366828832,1750486243342,-500.0,0.00027655,5]
[366828833,1750486243352,-500.0,0.00027655,5]
[366828834,1750486243363,-200.0,0.00027674,2]
[366828835,1750486243372,-4176.1682297,0.00027677,2]
[366828836,1750486243383,-2183.31810187,0.00027687,2]
[366828837,1750486243393,-2264.10087164,0.00027742,2]
[366828838,1750486243403,-4176.1682297,0.00027787,2]
[366828839,1750486243412,-2347.87260389,0.00027797,2]
[366828840,1750486243422,-1265.0,0.000278,2]
[366828841,1750486243432,-151.35,0.00027819,2]
[366828842,1750486243441,-4176.1682297,0.00027829,2]
[366828843,1750486243451,-4587.11781,0.00027839,2]
[366828844,1750486243461,-154.40266305,0.00027839,2]
[366828845,1750486243471,-4176.1682297,0.00027852,2]
[366828846,1750486243481,-2434.74389024,0.00027852,2]
[366828847,1750486243490,-4176.1682297,0.00027853,2]
[366828848,1750486243500,-1407.05458153,0.00027866,17]
[366828849,1750486243509,-4176.1682297,0.00027897,2]
[366828850,1750486243519,-1400.0,0.000279,10]
[366828851,1750486243528,-2524.82941417,0.00027907,2]
[366828852,1750486243538,-1000.0,0.00027948,2]
[366828853,1750486243548,-438.51269736,0.00027962,2]
[366828854,1750486243557,-4176.1682297,0.0002797,2]
[366828855,1750486243566,-397.21549349,0.0002798,2]
[366828856,1750486243576,-8352.3364594,0.0002798,2]
[366828857,1750486243586,-20880.8411485,0.0002799,2]
[366828858,1750486243595,-35576.9251083,0.00028,2]
[366828859,1750486243605,-278.93,0.00028,2]
[366828860,1750486243614,-776.31,0.00028,2]
[366828861,1750486243624,-715.55,0.00028,2]
[366828862,1750486243633,-4176.1682297,0.00028058,2]
[366828863,1750486243643,-151.0,0.00028059,7]
[366828864,1750486243652,-154.40266305,0.00028068,2]
[366828865,1750486243662,-500.0,0.00028107,5]
[366828866,1750486243672,-150.0,0.00028118,2]
[366828867,1750486243682,-200.18,0.00028145,120]
[366828868,1750486243691,-151.35,0.00028163,2]
[366828869,1750486243701,-226.8332916,0.00028163,2]
[366828870,1750486243711,-87699.5328237,0.00028173,2]
[366828871,1750486243721,-151.35,0.00028173,2]
[366828872,1750486243731,-151.35,0.00028173,2]
[366828873,1750486243740,-9263.40018389,0.00028173,2]
[366828874,1750486243750,-151.0,0.00028183,7]
[366828875,1750486243759,-151.0,0.00028183,7]
[366828876,1750486243769,-158.657658,0.00028183,7]
[366828877,1750486243778,-152.27022,0.00028183,7]
[366828878,1750486243788,-151.0,0.00028183,7]
[366828879,1750486243798,-151.0,0.00028183,7]
[366828880,1750486243808,-151.0,0.00028183,7]
[366828881,1750486243818,-151.0,0.00028183,7]
[366828882,1750486243827,-233.428433,0.00028183,7]
[366828883,1750486243837,-151.0,0.00028183,7]
[366828884,1750486243846,-246.073588,0.00028183,7]
[366828885,1750486243856,-246.073588,0.00028183,7]
[366828886,1750486243873,-151.0,0.00028183,7]
[366828887,1750486243883,-210132.59396534,0.00028183,2]
[366828888,1750486243892,-385.0,0.000282,2]
[366828889,1750486243901,-1000.0,0.00028202,5]
[366828890,1750486243911,-1139.05560084,0.00028202,5]
[366828891,1750486243921,-153.13,0.00028203,2]
[366828892,1750486243931,-173.28,0.00028219,2]
[366828893,1750486243940,-1165.59,0.00028219,2]
[366828894,1750486243950,-163.58,0.00028219,2]
[366828895,1750486243960,-163.58,0.00028219,2]
[366828896,1750486243969,-20148.84957599,0.0002823,2]
[366828897,1750486243979,-257.13756037,0.00028259,2]
[366828898,1750486243989,-946.0,0.00028269,2]
[366828899,1750486243998,-3333.0,0.00028269,2]
[366828900,1750486244008,-803.0,0.00028269,2]
[366828901,1750486244017,-638.0,0.00028269,2]
[366828902,1750486244027,-559.0,0.00028269,2]
[366828903,1750486244037,-2004.0,0.00028269,2]
[366828904,1750486244050,-1085.907,0.00028269,2]
[366828905,1750486244060,-928.0,0.00028269,2]
[366828906,1750486244070,-591.0,0.00028269,2]
[366828907,1750486244080,-1402.418,0.00028269,2]
[366828908,1750486244090,-1161.0,0.00028269,2]
[366828909,1750486244100,-154.40266305,0.00028297,2]
[366828910,1750486244109,-151.0,0.00028299,2]
[366828911,1750486244120,-12049.55,0.000283,2]
[366828912,1750486244130,-500.0,0.00028308,5]
[366828913,1750486244139,-500.0,0.00028308,5]
[366828914,1750486244149,-250.0,0.00028331,2]
[366828915,1750486244159,-151.0,0.00028404,7]
[366828916,1750486244168,-151.0,0.00028404,7]
[366828917,1750486244177,-150.0,0.00028404,2]
[366828918,1750486244187,-150.0,0.00028404,2]
[366828919,1750486244197,-150.0,0.00028404,2]
[366828920,1750486244207,-150.0,0.00028404,2]
[366828921,1750486244217,-150.0,0.00028404,2]
[366828922,1750486244226,-150.0,0.00028404,2]
[366828923,1750486244236,-150.0,0.00028404,2]
[366828924,1750486244246,-150.0,0.00028404,2]
[366828925,1750486244256,-223.193,0.00028404,2]
[366828926,1750486244265,-150.0,0.00028404,2]
[366828927,1750486244275,-150.0,0.00028404,2]
[366828928,1750486244285,-1407.05458153,0.00028417,19]
[366828929,1750486244295,-847.5,0.0002848,15]
[366828930,1750486244305,-1000.0,0.00028493,7]
[366828931,1750486244315,-1000.0,0.00028493,7]
[366828932,1750486244328,-791.61159895,0.00028493,7]
[366828933,1750486244338,-154.40266305,0.00028525,2]
[366828934,1750486244348,-204.0,0.00028536,7]
[366828935,1750486244358,-1093.94739708,0.00028655,5]
[366828936,1750486244369,-815.5131921,0.000287,2]
[366828937,1750486244379,-3235.66892233,0.000287,2]
[366828938,1750486244389,-279.6319339,0.00028722,2]
[366828939,1750486244401,-1500.0,0.0002875,5]
[366828940,1750486244412,-154.40266305,0.00028754,2]
[366828941,1750486244422,-5114.65,0.00028767,2]
[366828942,1750486244434,-12856.87801818,0.0002879,2]
[366828943,1750486244444,-1988.64,0.000288,2]
[366828944,1750486244454,-1988.64,0.000288,2]
[366828945,1750486244464,-7765.79,0.000288,2]
[366828946,1750486244474,-7765.79,0.000288,2]
[366828947,1750486244484,-151.0,0.000288,7]
[366828948,1750486244494,-151.0,0.000288,7]
[366828949,1750486244504,-177.735469,0.000288,7]
[366828950,1750486244514,-259.321527,0.000288,7]
[366828951,1750486244524,-259.321527,0.000288,7]
[366828952,1750486244534,-200.32,0.000288,2]
[366828953,1750486244544,-376.0,0.000288,2]
[366828954,1750486244554,-200.32,0.000288,2]
[366828955,1750486244564,-769.0,0.000288,2]
[366828956,1750486244574,-150.0,0.00028839,2]
[366828957,1750486244584,-1000.0,0.00028856,5]
[366828958,1750486244594,-1000.0,0.00028856,5]
[366828959,1750486244604,-151.35,0.00028861,2]
[366828960,1750486244614,-1426.0,0.00028871,5]
[366828961,1750486244625,-151.0,0.00028888,7]
[366828962,1750486244634,-151.0,0.00028888,7]
[366828963,1750486244644,-151.0,0.00028888,7]
[366828964,1750486244654,-151.0,0.00028888,7]
[366828965,1750486244664,-156.587,0.00028891,2]
[366828966,1750486244675,-215.0738,0.00028891,2]
[366828967,1750486244684,-170.91,0.00028895,2]
[366828968,1750486244694,-1988.64,0.000289,2]
[366828969,1750486244704,-7765.79,0.000289,2]
[366828970,1750486244714,-1520.616,0.000289,21]
[366828971,1750486244724,-200.32,0.000289,2]
[366828972,1750486244734,-1018.270493,0.00028905,8]
[366828973,1750486244744,-84265.0626,0.00028909,2]
[366828974,1750486244754,-151.0,0.00028909,7]
[366828975,1750486244764,-151.0,0.00028909,7]
[366828976,1750486244774,-151.0,0.00028909,7]
[366828977,1750486244784,-151.0,0.00028909,7]
[366828978,1750486244794,-151.0,0.00028909,7]
[366828979,1750486244804,-177.475437,0.00028909,7]
[366828980,1750486244814,-177.475437,0.00028909,7]
[366828981,1750486244824,-151.0,0.00028909,7]
[366828982,1750486244834,-151.0,0.00028909,7]
[366828983,1750486244845,-151.0,0.00028909,7]
[366828984,1750486244855,-151.0,0.00028909,7]
[366828985,1750486244865,-151.0,0.00028909,7]
[366828986,1750486244875,-151.0,0.00028909,7]
[366828987,1750486244885,-151.0,0.00028909,7]
[366828988,1750486244896,-246.073588,0.00028909,7]
[366828989,1750486244906,-246.073588,0.00028909,7]
[366828990,1750486244916,-151.0,0.00028909,7]
[366828991,1750486244927,-151.0,0.0002891,3]
[366828992,1750486244936,-1407.05458153,0.00028969,20]
[366828993,1750486244946,-154.40266305,0.00028983,2]
[366828994,1750486244956,-151.0,0.0002899,7]
[366828995,1750486244966,-151.35,0.0002899,2]
[366828996,1750486244975,-36366.23441265,0.00029,2]
[366828997,1750486244985,-155.61,0.00029,2]
[366828998,1750486244995,-151.0,0.00029,7]
[366828999,1750486245005,-151.0,0.00029,7]
[366829000,1750486245015,-151.0,0.00029,7]
[366829001,1750486245025,-150.0,0.00029,2]
[366829002,1750486245035,-151.0,0.00029,7]
[366829003,1750486245045,-207.502118,0.00029,7]
[366829004,1750486245055,-151.0,0.00029,7]
[366829005,1750486245065,-151.0,0.00029,7]
[366829006,1750486245075,-238.0,0.00029,2]
[366829007,1750486245085,-424.94062948,0.00029007,15]
[366829008,1750486245094,-2000.0,0.00029089,60]
[366829009,1750486245105,-512.821426,0.00029089,120]
[366829010,1750486245114,-12049.55,0.000291,2]
[366829011,1750486245124,-270.0,0.00029195,2]
[366829012,1750486245135,-154.40266305,0.00029212,2]
[366829013,1750486245145,-155.61,0.00029219,2]
[366829014,1750486245156,-9263.40018389,0.0002923,2]
[366829015,1750486245166,-20148.84957599,0.00029298,2]
[366829016,1750486245176,-2000.0,0.00029298,5]
[366829017,1750486245185,-1988.64,0.000293,2]
[366829018,1750486245195,-7765.79,0.000293,2]
[366829019,1750486245205,-200.32,0.000293,2]
[366829020,1750486245215,-1500.0,0.00029404,5]
[366829021,1750486245225,-1500.0,0.00029404,5]
[366829022,1750486245235,-154.40266305,0.0002944,2]
[366829023,1750486245245,-150.0,0.0002952,2]
[366829024,1750486245255,-1407.05458153,0.00029521,21]
[366829025,1750486245265,-151.0,0.00029522,3]
[366829026,1750486245275,-150.0,0.00029533,2]
[366829027,1750486245284,-150.0,0.00029551,2]
[366829028,1750486245294,-150.0,0.0002956,2]
[366829029,1750486245303,-200.0,0.00029561,2]
[366829030,1750486245314,-150.0,0.00029583,2]
[366829031,1750486245327,-150.0,0.00029587,2]
[366829032,1750486245337,-150.0,0.00029599,2]
[366829033,1750486245346,-150.0,0.00029608,2]
[366829034,1750486245355,-150.0,0.00029608,2]
[366829035,1750486245367,-150.0,0.00029616,2]
[366829036,1750486245378,-150.0,0.00029622,2]
[366829037,1750486245388,-150.0,0.0002963,2]
[366829038,1750486245399,-150.0,0.00029637,2]
[366829039,1750486245409,-150.0,0.00029647,2]
[366829040,1750486245419,-151.0,0.00029647,7]
[366829041,1750486245428,-151.0,0.00029647,7]
[366829042,1750486245438,-259.321527,0.00029647,7]
[366829043,1750486245447,-259.321527,0.00029647,7]
[366829044,1750486245457,-150.0,0.00029665,2]
[366829045,1750486245467,-154.40266305,0.00029669,2]
[366829046,1750486245476,-150.0,0.00029677,2]
[366829047,1750486245487,-150.0,0.00029681,2]
[366829048,1750486245498,-3235.66,0.000297,2]
[366829049,1750486245508,-397.21549349,0.0002971,2]
[366829050,1750486245518,-150.0,0.00029718,2]
[366829051,1750486245528,-161.83290944,0.00029723,2]
[366829052,1750486245537,-150.0,0.00029738,2]
[366829053,1750486245547,-150.0,0.00029753,2]
[366829054,1750486245558,-1386.02,0.00029763,2]
[366829055,1750486245568,-528.69,0.00029763,2]
[366829056,1750486245579,-150.0,0.00029767,2]
[366829057,1750486245588,-700.0,0.0002977,2]
[366829058,1750486245597,-270.0,0.00029772,2]
[366829059,1750486245607,-150.0,0.00029772,2]
[366829060,1750486245618,-437.88,0.00029775,120]
[366829061,1750486245627,-150.0,0.00029776,2]
[366829062,1750486245636,-150.0,0.00029776,2]
[366829063,1750486245645,-150.0,0.00029792,2]
[366829064,1750486245654,-8401.6977832,0.00029792,2]
[366829065,1750486245664,-82052.22723708,0.00029792,2]
[366829066,1750486245972,-76607.62018139,0.00029792,2]
[366829067,1750486245984,-2393.72725598,0.00029792,2]
[366829068,1750486245995,-1096.2,0.00029792,2]
[366829087,1750486246404,-885.0,0.00027064,2]
[366829088,1750486246413,-449.72964582,0.00029792,2]
[366829089,1750486246425,-372.63250232,0.00029792,2]
[366829090,1750486246542,-16126.64478731,0.00029792,2]
[366829091,1750486246552,-211.146581,0.00029792,7]
[366829092,1750486246561,-151.0,0.00029792,7]
[366829093,1750486246571,-270.997773,0.00029792,7]
[366829094,1750486246581,-151.0,0.00029792,7]
[366829095,1750486246590,-151.0,0.00029792,7]
[366829096,1750486246600,-151.0,0.00029792,7]
[366829097,1750486246609,-289.954439,0.00029792,7]
[366829098,1750486246619,-151.0,0.00029792,7]
[366829099,1750486246629,-151.0,0.00029792,7]
[366829100,1750486246639,-279.879162,0.00029792,7]
[366829101,1750486246649,-246.073588,0.00029792,7]
[366829102,1750486246659,-246.073588,0.00029792,7]
[366829104,1750486246669,-151.0,0.00029792,7]
[366829106,1750486246679,-3257.55169658,0.00029796,2]
[366829107,1750486246691,-1793.65220312,0.00029796,2]
[366829108,1750486246704,-6877.669408,0.00029796,2]
[366829110,1750486246714,-3892.31795853,0.000298,120]
[366829112,1750486246724,-275.54742766,0.000298,120]
[366829113,1750486246733,-2100.0,0.000298,10]
[366829115,1750486246742,-151.0,0.00029803,7]
[366829116,1750486246751,-151.0,0.00029803,7]
[366829117,1750486246760,-151.0,0.00029803,7]
[366829118,1750486246768,-256.269433,0.00029803,7]
[366829119,1750486246777,-151.0,0.00029803,7]
[366829120,1750486246785,-208.984921,0.00029803,7]
[366829121,1750486246794,-151.0,0.00029803,7]
[366829122,1750486246802,-151.0,0.00029803,7]
[366829123,1750486246811,-151.0,0.00029803,7]
[366829124,1750486246819,-151.0,0.00029803,7]
[366829125,1750486246828,-177.475437,0.00029803,7]
[366829126,1750486246836,-177.475437,0.00029803,7]
[366829127,1750486246845,-151.0,0.00029803,7]
[366829128,1750486246853,-247.65,0.00029822,2]
[366829129,1750486246861,-151.0,0.00029823,7]
[366829130,1750486246870,-151.0,0.00029823,7]
[366829131,1750486246878,-281.033427,0.00029823,7]
[366829132,1750486246885,-227.84829237,0.00029823,2]
[366829133,1750486246892,-4587.11781,0.00029839,2]
[366829134,1750486246900,-803.94813999,0.00029846,5]
[366829135,1750486246912,-664.05658032,0.00029846,5]
[366829136,1750486246923,-394.71616085,0.00029846,5]
[366829137,1750486246942,-637.27911884,0.00029846,5]
[366829138,1750486246951,-148.70156222,0.00029898,2]
[366829139,1750486246962,-5.70110083,0.00029898,2]
[366829140,1750486246971,-208.17,0.000299,2]
[366829141,1750486246980,-1024.68290264,0.000299,2]
[366829142,1750486246991,-9109.94530639,0.000299,2]
[366829143,1750486247000,-12049.55,0.000299,2]
[366829144,1750486247009,-151.0,0.000299,7]
[366829145,1750486247018,-290.772479,0.000299,7]
[366829146,1750486247027,-259.321527,0.000299,7]
[366829147,1750486247037,-259.321527,0.000299,7]
[366829148,1750486247046,-2800.0,0.000299,10]
[366829149,1750486247055,-2000.0,0.00029952,5]
[366829150,1750486247064,-2000.0,0.00029952,5]
[366829151,1750486247074,-230.47601097,0.0002999,2]
[366829152,1750486247085,-6046.91444261,0.00029998,14]
[366829153,1750486247168,-3032.9482599,0.00029998,14]
[366829154,1750486247177,-150.0,0.0003,2]
[366829155,1750486247187,-162.4,0.0003,2]
[366829156,1750486247196,-301.6517401,0.0003,30]
[366829157,1750486247215,-608.78929597,0.0003,30]
[366829158,1750486247227,-29089.55896393,0.0003,30]
[366829159,1750486247236,-30000.0,0.0003,30]
[366829160,1750486247246,-30000.0,0.0003,30]
[366829161,1750486247255,-19889.18992075,0.0003,30]
[366829162,1750486247278,-1125.30532543,0.0003,30]
[366829163,1750486247289,-731.46794035,0.0003,30]
[366829170,1750486323672,250.0,0.00015,2]
[366829174,1750486617524,600.0,0.0002,5]
[366829175,1750486618742,164.98088978,0.0002,5]
[366829176,1750486618765,435.01911022,0.0002,5]
[366829177,1750486619643,282.87892615,0.0002,5]
[366829178,1750486620742,600.0,0.0002,5]
[366829179,1750486622930,600.0,0.0002,5]
[366829180,1750486624124,600.0,0.0002,5]
[366829181,1750486625264,600.0,0.0002,5]
[366829182,1750486626173,187.25857847,0.0002,5]
[366829183,1750486626196,412.74142153,0.0002,5]
[366829186,1750487048317,153.12,0.00013699,2]
[366829187,1750487113103,586.30314092,0.0002,5]
[366829188,1750487114109,600.0,0.0002,5]
[366829189,1750487115762,600.0,0.0002,5]
[366829190,1750487116899,204.0,0.0002,5]
[366829191,1750487116923,396.0,0.0002,5]
[366829192,1750487117822,545.21256367,0.0002,5]
[366829305,1750487212034,296.0,0.000247,120]
[366829306,1750487276168,1579.0,0.000247,120]
[366829307,1750487320732,885.40714559,0.0002,2]
[366829308,1750487323081,3227.66162982,0.0002,2]
[366829324,1750487432326,-203.0,0.0002139,2]
[366829325,1750487432336,-153.12,0.00021404,2]
[366829327,1750487432345,-250.0,0.00021897,2]
[366829328,1750487432355,-250.0,0.00023545,2]
[366829329,1750487432364,-1755.89398934,0.00024,5]
[366829330,1750487432379,-353.57,0.00024,5]
[366829331,1750487432392,-1192.49994515,0.00024,5]
[366829332,1750487432403,-1698.03606551,0.00024,5]
[366829333,1750487432412,-203.0,0.00024147,6]
[366829334,1750487432423,-464.85,0.00024255,2]
[366829335,1750487432433,-744.0,0.00024386,2]
[366829336,1750487432444,-300.0,0.00024386,2]
[366829337,1750487432455,-300.0,0.00024387,2]
[366829338,1750487432464,-246.49,0.00024388,2]
[366829339,1750487432475,-249.91,0.00024388,2]
[366829340,1750487432486,-305.91,0.00024388,2]
[366829341,1750487432496,-250.44,0.00024388,2]
[366829342,1750487432507,-245.89,0.00024388,2]
[366829343,1750487432516,-300.74,0.00024388,2]
[366829344,1750487432526,-254.97,0.00024388,2]
[366829345,1750487432535,-305.64,0.00024388,2]
[366829346,1750487432545,-245.7,0.00024388,2]
[366829347,1750487432554,-304.28,0.00024388,2]
[366829348,1750487432564,-254.3,0.00024388,2]
[366829349,1750487432574,-254.01,0.00024388,2]
[366829350,1750487432584,-301.52,0.00024388,2]
[366829351,1750487432594,-246.29,0.00024388,2]
[366829352,1750487432604,-248.43,0.00024388,2]
[366829353,1750487432613,-302.61,0.00024388,2]
[366829354,1750487432623,-250.13,0.00024388,2]
[366829355,1750487432633,-249.03,0.00024388,2]
[366829356,1750487432645,-302.93,0.00024388,2]
[366829357,1750487432655,-246.99,0.00024388,2]
[366829358,1750487432664,-304.54,0.00024388,2]
[366829359,1750487432674,-254.86,0.00024389,2]
[366829360,1750487432685,-248.8,0.00024389,2]
[366829361,1750487432695,-305.78,0.00024389,2]
[366829362,1750487432705,-252.78,0.00024389,2]
[366829363,1750487432715,-246.35,0.00024389,2]
[366829364,1750487432724,-249.12,0.00024389,2]
[366829365,1750487432734,-252.46,0.00024389,2]
[366829366,1750487432743,-251.14,0.00024389,2]
[366829367,1750487432753,-304.1,0.00024389,2]
[366829368,1750487432762,-152.02,0.0002439,2]
[366829369,1750487432772,-248.2,0.0002439,2]
[366829370,1750487432782,-304.8,0.0002439,2]
[366829371,1750487432791,-253.58,0.0002439,2]
[366829372,1750487432801,-254.44,0.0002439,2]
[366829373,1750487432810,-300.16,0.0002439,2]
[366829374,1750487432820,-254.42,0.0002439,2]
[366829375,1750487432829,-250.63,0.0002439,2]
[366829376,1750487432838,-300.38,0.0002439,2]
[366829377,1750487432848,-249.43,0.0002439,2]
[366829379,1750487432858,-251.45,0.0002439,2]
[366829381,1750487432867,-302.37,0.0002439,2]
[366829383,1750487432877,-245.03,0.0002439,2]
[366829385,1750487432886,-249.39,0.0002439,2]
[366829387,1750487432899,-300.29,0.0002439,2]
[366829389,1750487432908,-247.9,0.0002439,2]
[366829391,1750487432917,-305.05,0.0002439,2]
[366829393,1750487432927,-248.96,0.0002439,2]
[366829395,1750487432936,-300.3,0.0002439,2]
[366829396,1750487432945,-300.08,0.0002439,2]
[366829399,1750487432955,-251.33,0.0002439,2]
[366829400,1750487432963,-302.03,0.0002439,2]
[366829402,1750487432973,-420.5099103,0.0002439,2]
[366829404,1750487432982,-248.83,0.00024393,2]
[366829406,1750487432992,-301.13,0.00024396,2]
[366829408,1750487433001,-246.3,0.00024412,2]
[366829410,1750487433011,-305.88,0.00024435,2]
[366829412,1750487433021,-251.18,0.00024457,2]
[366829414,1750487433031,-250.86,0.0002451,2]
[366829416,1750487433040,-247.17,0.0002451,2]
[366829418,1750487433050,-304.93,0.0002463,2]
[366829420,1750487433059,-23900.0,0.0002469,2]
[366829422,1750487433068,-999.72845659,0.000249,12]
[366829424,1750487433078,-12514.57856871,0.00025,2]
[366829426,1750487433088,-170.8,0.00025049,2]
[366829428,1750487433097,-170.8,0.00025056,2]
[366829430,1750487433106,-170.8,0.00025062,2]
[366829432,1750487433115,-170.8,0.00025069,2]
[366829434,1750487433125,-170.8,0.00025075,2]
[366829436,1750487433134,-170.8,0.00025082,2]
[366829438,1750487433145,-170.8,0.00025089,2]
[366829440,1750487433154,-170.8,0.00025095,2]
[366829442,1750487433163,-170.8,0.00025102,2]
[366829444,1750487433172,-170.8,0.00025108,2]
[366829446,1750487433182,-170.8,0.00025115,2]
[366829448,1750487433191,-170.8,0.00025122,2]
[366829450,1750487433201,-170.8,0.00025128,2]
[366829452,1750487433210,-170.8,0.00025135,2]
[366829454,1750487433220,-170.8,0.00025142,2]
[366829456,1750487433229,-170.8,0.00025148,2]
[366829458,1750487433238,-170.8,0.00025155,2]